fUSD/lending_fUSD_20251227
["ID","MTS","AMOUNT","RATE_DAILY","PERIOD"]
[399878441,1766799045880,-670.69301146,0.00018164,2]
[399878442,1766799045889,-1112.22800439,0.00018164,2]
[399878443,1766799045899,-2500.0,0.00018164,2]
[399878444,1766799045910,-300.0,0.00018355,2]
[399878445,1766799045922,-300.0,0.00018355,2]
[399878446,1766799045932,-300.0,0.00018355,2]
[399878447,1766799045941,-88171.14,0.00018356,2]
[399878448,1766799045951,-500.0,0.00018384,2]
[399878449,1766799045961,-1220.66,0.00018386,2]
[399878450,1766799045971,-1220.66,0.00018386,2]
[399878451,1766799045980,-1220.66,0.00018386,2]
[399878452,1766799045990,-1220.66,0.00018386,2]
[399878453,1766799045999,-663.35,0.00018386,2]
[399878454,1766799046008,-1220.66,0.00018386,2]
[399878455,1766799046018,-1220.66,0.00018386,2]
[399878456,1766799046028,-1220.66,0.00018486,2]
[399878457,1766799046037,-1220.66,0.00018486,2]
[399878458,1766799046047,-500.0,0.000185,2]
[399878459,1766799046057,-587.77940564,0.00018553,2]
[399878460,1766799046067,-5800.0,0.00018644,2]
[399878461,1766799046076,-5800.0,0.00018652,2]
[399878462,1766799046087,-5800.0,0.00018661,2]
[399878464,1766799046097,-5800.0,0.00018669,2]
[399878466,1766799046106,-5800.0,0.00018678,2]
[399878467,1766799046116,-5800.0,0.00018686,2]
[399878468,1766799046125,-5800.0,0.00018695,2]
[399878469,1766799046135,-2378.43362891,0.00018712,2]
[399878470,1766799046145,-1220.66,0.00018726,2]
[399878471,1766799046155,-1220.66,0.00018726,2]
[399878472,1766799046164,-2455.12,0.00018726,2]
[399878473,1766799046174,-150.0,0.00018758,2]
[399878474,1766799046183,-150.0,0.00018758,2]
[399878475,1766799046192,-150.0,0.00018758,2]
[399878476,1766799046202,-150.0,0.00018758,2]
[399878477,1766799046211,-150.0,0.00018758,2]
[399878478,1766799046221,-150.0,0.00018758,2]
[399878479,1766799046231,-150.0,0.00018758,2]
[399878480,1766799046240,-150.0,0.00018758,2]
[399878481,1766799046249,-150.0,0.00018758,2]
[399878482,1766799046258,-150.0,0.00018758,2]
[399878483,1766799046268,-150.0,0.00018758,2]
[399878484,1766799046278,-1000.0,0.0001876,2]
[399878485,1766799046288,-1000.0,0.00018765,2]
[399878486,1766799046297,-2431.0,0.00018794,2]
[399878487,1766799046306,-151.0,0.000188,2]
[399878488,1766799046316,-151.0,0.000188,2]
[399878489,1766799046326,-151.0,0.000188,2]
[399878490,1766799046335,-151.0,0.000188,2]
[399878491,1766799046345,-151.0,0.000188,2]
[399878492,1766799046355,-151.0,0.000188,2]
[399878493,1766799046365,-151.0,0.000188,2]
[399878494,1766799046375,-151.0,0.000188,2]
[399878495,1766799046385,-151.0,0.000188,2]
[399878496,1766799046394,-151.0,0.000188,2]
[399878497,1766799046404,-151.0,0.000188,2]
[399878498,1766799046414,-151.0,0.000188,2]
[399878499,1766799046424,-151.0,0.000188,2]
[399878500,1766799046435,-151.0,0.000188,2]
[399878501,1766799046446,-151.0,0.000188,2]
[399878502,1766799046456,-151.0,0.000188,2]
[399878503,1766799046648,-151.0,0.000188,2]
[399878504,1766799046658,-151.0,0.000188,2]
[399878505,1766799046669,-151.0,0.000188,2]
[399878506,1766799046679,-151.0,0.000188,2]
[399878507,1766799046689,-151.0,0.000188,2]
[399878508,1766799046699,-151.0,0.000188,2]
[399878509,1766799046710,-151.0,0.000188,2]
[399878510,1766799046720,-151.0,0.000188,2]
[399878511,1766799046730,-151.0,0.000188,2]
[399878512,1766799046740,-151.0,0.000188,2]
[399878513,1766799046749,-151.0,0.000188,2]
[399878514,1766799046759,-151.0,0.000188,2]
[399878515,1766799046770,-151.0,0.000188,2]
[399878516,1766799046780,-151.0,0.000188,2]
[399878517,1766799046789,-151.0,0.000188,2]
[399878518,1766799046805,-151.0,0.000188,2]
[399878519,1766799046816,-151.0,0.000188,2]
[399878520,1766799046826,-151.0,0.000188,2]
[399878521,1766799046837,-151.0,0.000188,2]
[399878522,1766799046847,-151.0,0.000188,2]
[399878523,1766799046857,-151.0,0.000188,2]
[399878524,1766799046867,-151.0,0.000188,2]
[399878525,1766799046877,-151.0,0.000188,2]
[399878526,1766799046887,-151.0,0.000188,2]
[399878527,1766799046898,-151.0,0.000188,2]
[399878528,1766799046910,-151.0,0.000188,2]
[399878529,1766799046921,-151.0,0.000188,2]
[399878530,1766799046931,-151.0,0.000188,2]
[399878531,1766799046939,-151.0,0.000188,2]
[399878532,1766799046948,-151.0,0.000188,2]
[399878533,1766799046957,-151.0,0.000188,2]
[399878534,1766799046965,-151.0,0.000188,2]
[399878535,1766799046975,-151.0,0.000188,2]
[399878536,1766799046988,-151.0,0.000188,2]
[399878537,1766799046999,-151.0,0.000188,2]
[399878538,1766799047009,-151.0,0.000188,2]
[399878539,1766799047020,-151.0,0.000188,2]
[399878540,1766799047031,-151.0,0.000188,2]
[399878541,1766799047040,-151.0,0.000188,2]
[399878542,1766799047051,-151.0,0.000188,2]
[399878543,1766799047061,-151.0,0.000188,2]
[399878544,1766799047071,-151.0,0.000188,2]
[399878545,1766799047081,-151.0,0.000188,2]
[399878546,1766799047091,-151.0,0.000188,2]
[399878547,1766799047101,-151.0,0.000188,2]
[399878548,1766799047111,-151.0,0.000188,2]
[399878549,1766799047122,-151.0,0.000188,2]
[399878550,1766799047132,-151.0,0.000188,2]
[399878551,1766799047142,-710.7,0.00018833,2]
[399878552,1766799047152,-2117.31986145,0.00018863,2]
[399878553,1766799047167,-346.92554585,0.00018887,2]
[399878554,1766799047178,-298.26089446,0.00018887,2]
[399878555,1766799047188,-1559.5,0.00018887,2]
[399878556,1766799047198,-599.60298507,0.00018888,2]
[399878557,1766799047210,-162.81708498,0.000189,2]
[399878558,1766799047220,-224.59309911,0.00018982,2]
[399878559,1766799047231,-169.42,0.00018992,2]
[399878560,1766799047243,-300.0,0.00018999,2]
[399878561,1766799047253,-300.0,0.00018999,2]
[399878562,1766799047263,-300.0,0.00018999,2]
[399878563,1766799047274,-5151.78409509,0.00019,2]
[399878564,1766799047286,-61485.34487712,0.00019,2]
[399878565,1766799047296,-842.81307625,0.00019,2]
[399878566,1766799047306,-300.0,0.00019,2]
[399878567,1766799047318,-1263.0,0.00019014,2]
[399878568,1766799047329,-432.0,0.00019014,2]
[399878569,1766799047340,-912.0,0.00019014,2]
[399878570,1766799047350,-1198.0,0.00019014,2]
[399878571,1766799047361,-4809.0,0.00019014,2]
[399878572,1766799047371,-1610.0,0.00019014,2]
[399878573,1766799047382,-354.88,0.00019088,2]
[399878574,1766799047393,-217.34765879,0.0001909,2]
[399878575,1766799047403,-179.65,0.00019095,2]
[399878576,1766799047413,-22154.3850866,0.0001916,2]
[399878577,1766799047425,-153.77118782,0.00019178,2]
[399878578,1766799047435,-3001.50806085,0.00019178,2]
[399878579,1766799047446,-151.0,0.00019178,2]
[399878580,1766799047455,-151.0,0.00019178,2]
[399878581,1766799047466,-151.0,0.00019178,2]
[399878582,1766799047477,-151.0,0.00019178,2]
[399878583,1766799047487,-151.0,0.00019178,2]
[399878584,1766799047498,-151.0,0.00019178,2]
[399878585,1766799047507,-151.0,0.00019178,2]
[399878586,1766799047518,-151.0,0.00019178,2]
[399878587,1766799047533,-151.0,0.00019178,2]
[399878588,1766799047543,-151.0,0.00019178,2]
[399878589,1766799047554,-151.0,0.00019178,2]
[399878590,1766799047568,-151.0,0.00019178,2]
[399878591,1766799047580,-151.0,0.00019178,2]
[399878592,1766799047590,-179.105117,0.00019178,2]
[399878593,1766799047601,-151.0,0.00019178,2]
[399878594,1766799047612,-151.0,0.00019178,2]
[399878595,1766799047622,-151.0,0.00019178,2]
[399878596,1766799047633,-151.0,0.00019178,2]
[399878597,1766799047643,-151.0,0.00019178,2]
[399878598,1766799047653,-151.0,0.00019178,2]
[399878599,1766799047664,-151.0,0.00019178,2]
[399878600,1766799047674,-151.0,0.00019178,2]
[399878601,1766799047684,-151.0,0.00019178,2]
[399878602,1766799047694,-151.0,0.00019178,2]
[399878603,1766799047704,-151.0,0.00019178,2]
[399878604,1766799047714,-151.0,0.00019178,2]
[399878605,1766799047725,-151.0,0.00019178,2]
[399878606,1766799047735,-207.068858,0.00019178,2]
[399878607,1766799047746,-151.0,0.00019178,2]
[399878608,1766799047757,-151.0,0.00019178,2]
[399878609,1766799047767,-151.0,0.00019178,2]
[399878610,1766799047777,-151.0,0.00019178,2]
[399878611,1766799047787,-151.0,0.00019178,2]
[399878612,1766799047798,-151.0,0.00019178,2]
[399878613,1766799047809,-151.0,0.00019178,2]
[399878614,1766799047819,-151.0,0.00019178,2]
[399878615,1766799047829,-151.0,0.00019178,2]
[399878616,1766799047839,-1421.748511,0.00019178,2]
[399878617,1766799047850,-1421.748511,0.00019178,2]
[399878618,1766799047860,-1421.748511,0.00019178,2]
[399878619,1766799047871,-1421.748511,0.00019178,2]
[399878620,1766799047882,-1421.748511,0.00019178,2]
[399878621,1766799047896,-1421.748511,0.00019178,2]
[399878622,1766799047909,-1421.748511,0.00019178,2]
[399878623,1766799047921,-1421.748511,0.00019178,2]
[399878624,1766799047932,-1421.748511,0.00019178,2]
[399878625,1766799047943,-1421.748511,0.00019178,2]
[399878626,1766799047953,-1421.748511,0.00019178,2]
[399878627,1766799047964,-1421.748511,0.00019178,2]
[399878628,1766799047974,-1421.748511,0.00019178,2]
[399878629,1766799047986,-1421.748511,0.00019178,2]
[399878630,1766799047996,-1421.748511,0.00019178,2]
[399878631,1766799048006,-1421.748511,0.00019178,2]
[399878632,1766799048017,-1421.748511,0.00019178,2]
[399878633,1766799048027,-1421.748511,0.00019178,2]
[399878634,1766799048037,-1421.748511,0.00019178,2]
[399878635,1766799048047,-1421.748517,0.00019178,2]
[399878636,1766799048058,-150.09467516,0.00019178,2]
[399878637,1766799048069,-151.66634213,0.00019198,2]
[399878638,1766799048083,-343.24,0.00019204,2]
[399878639,1766799048093,-354.88,0.00019388,2]
[399878640,1766799048104,-153.97,0.00019403,2]
[399878641,1766799048114,-169.63,0.00019416,2]
[399878642,1766799048125,-1000.0,0.00019438,2]
[399878643,1766799048136,-5884.00673273,0.0001949,5]
[399878644,1766799048146,-1746.0,0.00019534,2]
[399878645,1766799048157,-4943.3114923,0.00019644,2]
[399878646,1766799048168,-750.47783739,0.00019726,2]
[399878647,1766799048178,-178.57,0.00019726,2]
[399878648,1766799048189,-357.14,0.00019726,2]
[399878649,1766799048200,-178.57,0.00019726,2]
[399878650,1766799048210,-178.57,0.00019726,2]
[399878651,1766799048221,-178.57,0.00019726,2]
[399878652,1766799048232,-178.57,0.00019726,2]
[399878653,1766799048242,-178.57,0.00019726,2]
[399878654,1766799048253,-178.57,0.00019726,2]
[399878655,1766799048263,-178.57,0.00019726,2]
[399878656,1766799048274,-178.57,0.00019726,2]
[399878657,1766799048287,-178.57,0.00019726,2]
[399878658,1766799048298,-178.57,0.00019726,2]
[399878659,1766799048309,-357.14,0.00019726,2]
[399878660,1766799048320,-178.57,0.00019726,2]
[399878661,1766799048331,-178.57,0.00019726,2]
[399878662,1766799048341,-300.0,0.00019999,2]
[399878663,1766799048351,-300.0,0.00019999,2]
[399878664,1766799048362,-1287.46768174,0.0002,2]
[399878665,1766799048373,-200.5,0.0002,7]
[399878666,1766799048384,-1528.86588486,0.0002,2]
[399878667,1766799048394,-1461.34918159,0.0002,5]
[399878668,1766799048404,-2922.9019487,0.0002,7]
[399878669,1766799048414,-526.61693562,0.0002,7]
[399878670,1766799048424,-398.0,0.0002,2]
[399878671,1766799048434,-253892.32708795,0.0002,2]
[399878672,1766799048444,-2000.0,0.0002,2]
[399878673,1766799048454,-462.167628,0.0002,2]
[399878674,1766799048465,-462.167628,0.0002,2]
[399878675,1766799048475,-462.167628,0.0002,2]
[399878676,1766799048486,-462.167625,0.0002,2]
[399878677,1766799048495,-151.0,0.0002,2]
[399878678,1766799048505,-151.0,0.0002,2]
[399878679,1766799048516,-151.0,0.0002,2]
[399878680,1766799048526,-270.73003441,0.0002,2]
[399878681,1766799048536,-186.82,0.0002,2]
[399878682,1766799048546,-201.943336,0.0002,2]
[399878683,1766799048556,-1000.0,0.0002,7]
[399878684,1766799048567,-2000.0,0.0002001,2]
[399878685,1766799048577,-2000.0,0.0002002,2]
[399878686,1766799048588,-2574.481488,0.0002003,2]
[399878687,1766799048598,-1000.0,0.00020116,2]
[399878688,1766799048608,-532.85,0.00020187,2]
[399878689,1766799048618,-359.76179104,0.00020256,2]
[399878690,1766799048628,-252.80353876,0.00020256,2]
[399878691,1766799048638,-1000.0,0.0002047,2]
[399878692,1766799048648,-192.19,0.00020548,2]
[399878693,1766799048672,-1559.5,0.00020604,2]
[399878694,1766799048684,-587.77940564,0.00020635,2]
[399878695,1766799048694,-2000.0,0.000207,2]
[399878696,1766799048705,-169.42,0.00020719,2]
[399878697,1766799048715,-151.68,0.00020742,2]
[399878698,1766799048726,-1000.0,0.00020795,2]
[399878699,1766799048737,-151.66634213,0.00020798,2]
[399878700,1766799048748,-350.0,0.00021,2]
[399878701,1766799048758,-6850.19,0.00021068,2]
[399878702,1766799048770,-710.7,0.00021228,2]
[399878703,1766799048782,-169.63,0.00021313,2]
[399878704,1766799048792,-6358.04,0.0002137,2]
[399878705,1766799048803,-150.0,0.00021444,2]
[399878706,1766799048813,-32657.58207123,0.000215,2]
[399878707,1766799048824,-373.07297731,0.00021625,2]
[399878708,1766799048834,-621.78829552,0.00021627,2]
[399878709,1766799048845,-150.0,0.00021758,2]
[399878710,1766799048855,-150.0,0.00021758,2]
[399878711,1766799048865,-150.0,0.00021758,2]
[399878712,1766799048875,-150.0,0.00021758,2]
[399878713,1766799048886,-150.0,0.00021758,2]
[399878714,1766799048897,-2431.0,0.00021794,2]
[399878715,1766799048908,-2004.5731,0.00021808,2]
[399878716,1766799048922,-2000.0,0.00021808,2]
[399878717,1766799048932,-2000.0,0.00021808,2]
[399878718,1766799048943,-169.63,0.00021832,2]
[399878719,1766799048953,-1000.0,0.0002187,2]
[399878720,1766799048963,-500.0,0.0002187,2]
[399878721,1766799048974,-5000.0,0.00021918,2]
[399878722,1766799048984,-550.12,0.00021918,30]
[399878723,1766799048997,-151.0,0.00021918,2]
[399878724,1766799049007,-247.092085,0.00021918,2]
[399878725,1766799049023,-297.797938,0.00021918,2]
[399878726,1766799049033,-297.797938,0.00021918,2]
[399878727,1766799049043,-297.797938,0.00021918,2]
[399878728,1766799049054,-297.797938,0.00021918,2]
[399878729,1766799049065,-297.797938,0.00021918,2]
[399878730,1766799049076,-297.797938,0.00021918,2]
[399878731,1766799049086,-297.797938,0.00021918,2]
[399878732,1766799049098,-297.797938,0.00021918,2]
[399878733,1766799049108,-297.797938,0.00021918,2]
[399878734,1766799049118,-297.797938,0.00021918,2]
[399878735,1766799049128,-297.797938,0.00021918,2]
[399878736,1766799049139,-297.797938,0.00021918,2]
[399878737,1766799049149,-297.797938,0.00021918,2]
[399878738,1766799049159,-297.797938,0.00021918,2]
[399878739,1766799049179,-297.797938,0.00021918,2]
[399878740,1766799049190,-297.797938,0.00021918,2]
[399878741,1766799049200,-297.797938,0.00021918,2]
[399878742,1766799049210,-297.797938,0.00021918,2]
[399878743,1766799049220,-297.797938,0.00021918,2]
[399878744,1766799049229,-297.797934,0.00021918,2]
[399878745,1766799049240,-154.92559391,0.00021918,2]
[399878746,1766799049250,-800.0,0.00021918,2]
[399878747,1766799049263,-800.0,0.00021918,2]
[399878748,1766799049275,-800.0,0.00021918,2]
[399878749,1766799049285,-800.0,0.00021918,2]
[399878750,1766799049295,-800.0,0.00021918,2]
[399878751,1766799049305,-800.0,0.00021918,2]
[399878752,1766799049315,-222.36853499,0.00021918,2]
[399878753,1766799049325,-164.0,0.00021918,2]
[399878754,1766799049336,-164.0,0.00021918,2]
[399878755,1766799049346,-154.0,0.00021918,2]
[399878756,1766799049356,-164.0,0.00021918,2]
[399878757,1766799049366,-154.0,0.00021918,2]
[399878758,1766799049378,-154.0,0.00021918,2]
[399878759,1766799049388,-173.67199956,0.00021918,2]
[399878760,1766799049398,-154.0,0.00021918,2]
[399878761,1766799049407,-800.0,0.00021918,2]
[399878762,1766799049418,-154.0,0.00021918,2]
[399878763,1766799049428,-800.0,0.00021918,2]
[399878764,1766799049438,-800.0,0.00021918,2]
[399878765,1766799049448,-800.0,0.00021918,2]
[399878766,1766799049458,-800.0,0.00021918,2]
[399878767,1766799049468,-800.0,0.00021918,2]
[399878768,1766799049478,-800.0,0.00021918,2]
[399878769,1766799049487,-224.01323105,0.00021918,2]
[399878770,1766799049497,-228.15785588,0.00021918,2]
[399878771,1766799049507,-154.0,0.00021918,2]
[399878772,1766799049517,-154.0,0.00021918,2]
[399878773,1766799049527,-500.0,0.00021918,2]
[399878774,1766799049537,-500.0,0.00021918,2]
[399878775,1766799049547,-500.0,0.00021918,2]
[399878776,1766799049557,-500.0,0.00021918,2]
[399878777,1766799049567,-500.0,0.00021918,2]
[399878778,1766799049577,-500.0,0.00021918,2]
[399878779,1766799049587,-500.0,0.00021918,2]
[399878780,1766799049598,-500.0,0.00021918,2]
[399878781,1766799049608,-500.0,0.00021918,2]
[399878782,1766799049618,-500.0,0.00021918,2]
[399878783,1766799049628,-500.0,0.00021918,2]
[399878784,1766799049638,-500.0,0.00021918,2]
[399878785,1766799049648,-500.0,0.00021918,2]
[399878786,1766799049658,-500.0,0.00021918,2]
[399878787,1766799049668,-500.0,0.00021918,2]
[399878788,1766799049678,-500.0,0.00021918,2]
[399878789,1766799049688,-500.0,0.00021918,2]
[399878790,1766799049699,-500.81127342,0.00021918,2]
[399878791,1766799049709,-500.0,0.00021918,2]
[399878792,1766799049720,-500.0,0.00021918,2]
[399878793,1766799049733,-500.0,0.00021918,2]
[399878794,1766799049745,-500.0,0.00021918,2]
[399878795,1766799049760,-500.0,0.00021918,2]
[399878796,1766799049775,-500.0,0.00021918,2]
[399878797,1766799049789,-500.0,0.00021918,2]
[399878798,1766799049802,-500.0,0.00021918,2]
[399878799,1766799049814,-500.0,0.00021918,2]
[399878800,1766799049826,-500.0,0.00021918,2]
[399878801,1766799049837,-500.0,0.00021918,2]
[399878802,1766799049848,-500.0,0.00021918,2]
[399878803,1766799049859,-500.0,0.00021918,2]
[399878804,1766799049871,-500.0,0.00021918,2]
[399878805,1766799049885,-450.0,0.00021918,2]
[399878806,1766799049897,-500.0,0.00021918,2]
[399878807,1766799049910,-158.2879894,0.00021918,2]
[399878808,1766799049924,-534.98986224,0.00021945,2]
[399878809,1766799049937,-250.0,0.00021992,2]
[399878810,1766799049949,-173.13,0.00022,7]
[399878811,1766799049961,-20212.92,0.00022,7]
[399878812,1766799049974,-163.53,0.00022,2]
[399878813,1766799049986,-1263.0,0.00022014,2]
[399878814,1766799050000,-432.0,0.00022014,2]
[399878815,1766799050014,-912.0,0.00022014,2]
[399878816,1766799050026,-1198.0,0.00022014,2]
[399878817,1766799050039,-4648.339,0.00022014,2]
[399878818,1766799050051,-1610.0,0.00022014,2]
[399878819,1766799050063,-493.01830924,0.000221,2]
[399878820,1766799050075,-239.5622399,0.0002211,2]
[399878821,1766799050086,-481.45,0.00022219,2]
[399878822,1766799050097,-962.9,0.00022219,2]
[399878823,1766799050109,-481.45,0.00022219,2]
[399878824,1766799050122,-481.45,0.00022219,2]
[399878825,1766799050135,-151.66634213,0.00022398,2]
[399878826,1766799050147,-350.0,0.0002254,2]
[399878827,1766799050159,-161.45,0.000226,4]
[399878828,1766799050171,-481.45,0.00022603,2]
[399878829,1766799050184,-481.45,0.00022603,2]
[399878830,1766799050196,-481.45,0.00022603,2]
[399878831,1766799050207,-481.45,0.00022603,2]
[399878832,1766799050219,-481.45,0.00022603,2]
[399878833,1766799050232,-481.45,0.00022603,2]
[399878834,1766799050245,-481.45,0.00022603,2]
[399878836,1766799050257,-481.45,0.00022603,2]
[399878837,1766799050269,-481.45,0.00022603,2]
[399878838,1766799050282,-481.45,0.00022603,2]
[399878839,1766799050294,-481.45,0.00022603,2]
[399878840,1766799050306,-481.45,0.00022603,2]
[399878841,1766799050319,-481.45,0.00022603,2]
[399878842,1766799050331,-481.45,0.00022603,2]
[399878843,1766799050344,-481.45,0.00022603,2]
[399878844,1766799050356,-481.45,0.00022603,2]
[399878845,1766799050368,-481.45,0.00022603,2]
[399878846,1766799050381,-481.45,0.00022603,2]
[399878847,1766799050393,-481.45,0.00022603,2]
[399878848,1766799050405,-481.45,0.00022603,2]
[399878849,1766799050417,-481.45,0.00022603,2]
[399878850,1766799050431,-481.45,0.00022603,2]
[399878851,1766799050444,-481.45,0.00022603,2]
[399878852,1766799050455,-481.45,0.00022603,2]
[399878853,1766799050467,-486.69,0.00022603,2]
[399878854,1766799050479,-521.6091233,0.0002271,2]
[399878855,1766799050492,-587.77940564,0.00022718,2]
[399878856,1766799050503,-1000.0,0.0002274,2]
[399878858,1766799050516,-386.87667747,0.00022994,2]
[399878859,1766799050534,-1212.76710799,0.00023,2]
[399878860,1766799050547,-1004.60799052,0.00023,2]
[399878861,1766799050560,-400.0,0.00023,2]
[399878862,1766799050572,-348.0,0.00023,7]
[399878863,1766799050584,-1000.0,0.00023014,2]
[399878864,1766799050596,-450.0,0.00023088,2]
[399878865,1766799050609,-2578.03879692,0.000231,2]
[399878866,1766799050621,-348.0,0.00023288,7]
[399878867,1766799050632,-1000.0,0.00023288,2]
[399878868,1766799050642,-1000.0,0.00023333,7]
[399878869,1766799050652,-5000.0,0.00023378,2]
[399878870,1766799050663,-5000.0,0.00023378,2]
[399878871,1766799050675,-5000.0,0.00023378,2]
[399878872,1766799050686,-5000.0,0.00023378,2]
[399878873,1766799050697,-5000.0,0.00023378,2]
[399878874,1766799050709,-200.0,0.000235,2]
[399878875,1766799050722,-481.45,0.00023562,2]
[399878876,1766799050736,-481.45,0.00023562,2]
[399878878,1766799050748,-481.45,0.00023562,2]
[399878879,1766799050758,-481.45,0.00023562,2]
[399878880,1766799050768,-481.45,0.00023562,2]
[399878881,1766799050778,-169.92,0.00023562,2]
[399878882,1766799050788,-481.37,0.00023562,2]
[399878883,1766799050799,-1000.0,0.00023562,2]
[399878884,1766799050809,-710.7,0.00023624,2]
[399878885,1766799050821,-550.0,0.00023636,2]
[399878886,1766799050832,-3333.08718659,0.00023687,2]
[399878887,1766799050844,-170.82,0.00023753,2]
[399878888,1766799050857,-554.37,0.00023753,2]
[399878889,1766799050871,-554.37,0.00023753,2]
[399878890,1766799050883,-170.82,0.00023753,2]
[399878891,1766799050895,-568.05,0.00023753,2]
[399878892,1766799050906,-191.48,0.00023753,2]
[399878893,1766799050923,-150.0,0.00023973,2]
[399878894,1766799050934,-465.05,0.00023973,2]
[399878895,1766799050946,-465.05,0.00023973,2]
[399878896,1766799050958,-151.16,0.00023973,2]
[399878897,1766799050969,-474.12,0.00023973,2]
[399878899,1766799050981,-151.66634213,0.00023998,2]
[399878900,1766799050993,-2001.11084554,0.00024,3]
[399878901,1766799051005,-795.99196626,0.00024,7]
[399878902,1766799051017,-1231.24008447,0.00024,2]
[399878903,1766799051028,-554.37,0.00024082,2]
[399878904,1766799051039,-150.0,0.00024082,2]
[399878905,1766799051050,-232.92,0.00024082,2]
[399878906,1766799051061,-554.37,0.00024082,2]
[399878907,1766799051071,-170.82,0.00024082,2]
[399878908,1766799051083,-554.37,0.00024082,2]
[399878909,1766799051095,-170.82,0.00024082,2]
[399878910,1766799051106,-554.37,0.00024082,2]
[399878911,1766799051117,-170.82,0.00024082,2]
[399878912,1766799051128,-348.0,0.00024164,7]
[399878913,1766799051140,-213.27149362,0.00024184,2]
[399878914,1766799051151,-401.19111454,0.00024363,2]
[399878915,1766799051163,-644.79446246,0.00024366,2]
[399878916,1766799051175,-2000.0,0.000244,2]
[399878917,1766799051186,-481.45,0.00024521,2]
[399878918,1766799051198,-962.87,0.00024521,2]
[399878919,1766799051210,-481.45,0.00024521,2]
[399878921,1766799051222,-481.45,0.00024521,2]
[399878922,1766799051236,-481.45,0.00024521,2]
[399878923,1766799051248,-157.0,0.00024658,2]
[399878924,1766799051260,-157.0,0.00024658,2]
[399878925,1766799051273,-157.0,0.00024658,2]
[399878926,1766799051286,-157.0,0.00024658,2]
[399878927,1766799051298,-157.0,0.00024658,2]
[399878928,1766799051311,-162.93802036,0.00024658,2]
[399878929,1766799051324,-157.0,0.00024658,2]
[399878930,1766799051336,-998.38,0.00024658,2]
[399878931,1766799051348,-151.0,0.00024658,2]
[399878932,1766799051359,-151.0,0.00024658,2]
[399878933,1766799051371,-151.0,0.00024658,2]
[399878934,1766799051383,-151.0,0.00024658,2]
[399878935,1766799051395,-151.0,0.00024658,2]
[399878936,1766799051406,-255.196476,0.00024658,2]
[399878937,1766799051419,-151.987876,0.00024658,2]
[399878938,1766799051430,-151.0,0.00024658,2]
[399878939,1766799051441,-151.0,0.00024658,2]
[399878941,1766799051453,-177.345679,0.00024658,2]
[399878942,1766799051465,-151.0,0.00024658,2]
[399878943,1766799051476,-152.318168,0.00024658,2]
[399878944,1766799051488,-1000.0,0.00024658,2]
[399878945,1766799051500,-150.0,0.00024758,2]
[399878946,1766799051512,-150.0,0.00024758,2]
[399878947,1766799051523,-2431.0,0.00024794,2]
[399878948,1766799051534,-170.82,0.00024795,2]